fUST/lending_fUST_20250829
["ID","MTS","AMOUNT","RATE_DAILY","PERIOD"]
[381921634,1756409442775,-480.0,0.00022189,2]
[381921635,1756409442784,-494.4,0.00022189,2]
[381921636,1756409442793,-488.72,0.00022189,2]
[381921637,1756409442802,-2520.38,0.0002219,2]
[381921638,1756409442811,-480.0,0.0002219,2]
[381921639,1756409442821,-5512.36,0.0002219,2]
[381921640,1756409442830,-480.0,0.0002219,2]
[381921641,1756409442839,-2445.38,0.0002219,2]
[381921642,1756409442849,-480.0,0.0002219,2]
[381921643,1756409442858,-480.0,0.0002219,2]
[381921644,1756409442867,-715.62,0.0002219,2]
[381921645,1756409442876,-5942.04,0.0002219,2]
[381921646,1756409442885,-552.89,0.0002219,2]
[381921647,1756409442895,-482.39,0.0002219,2]
[381921648,1756409442905,-555.4,0.00022191,2]
[381921649,1756409442915,-480.0,0.00022191,2]
[381921650,1756409442924,-480.0,0.00022191,2]
[381921651,1756409442935,-3344.71,0.00022191,2]
[381921652,1756409442944,-655.83,0.00022191,2]
[381921653,1756409442953,-3490.11,0.00022191,2]
[381921654,1756409442964,-480.0,0.00022463,2]
[381921655,1756409442974,-494.4,0.00022463,2]
[381921656,1756409442984,-488.72,0.00022463,2]
[381921657,1756409442994,-2520.38,0.00022464,2]
[381921658,1756409443005,-480.0,0.00022464,2]
[381921659,1756409443013,-5512.36,0.00022464,2]
[381921660,1756409443022,-480.0,0.00022464,2]
[381921661,1756409443031,-2445.38,0.00022464,2]
[381921662,1756409443039,-480.0,0.00022464,2]
[381921663,1756409443047,-480.0,0.00022464,2]
[381921664,1756409443055,-715.62,0.00022464,2]
[381921665,1756409443063,-5942.04,0.00022464,2]
[381921666,1756409443072,-552.89,0.00022464,2]
[381921667,1756409443080,-482.39,0.00022464,2]
[381921670,1756409443089,-480.0,0.00022465,2]
[381921673,1756409443097,-361.64502393,0.00022465,2]
[381921674,1756409443107,-3344.71,0.00022465,2]
[381921677,1756409443116,-655.83,0.00022465,2]
[381921679,1756409443126,-3490.11,0.00022465,2]
[381921681,1756409443135,-500.0,0.0002247,2]
[381921683,1756409443144,-500.0,0.0002247,2]
[381921685,1756409443153,-500.0,0.0002247,2]
[381921687,1756409443162,-894.82,0.000225,7]
[381921689,1756409443172,-6241.85,0.000225,7]
[381921692,1756409443294,-3000.0,0.00022512,2]
[381921693,1756409443304,-619.22430229,0.00022521,2]
[381921694,1756409443314,-1000.0,0.00022521,2]
[381921695,1756409443324,-500.0,0.00022594,2]
[381921696,1756409443333,-260.0,0.00022617,2]
[381921697,1756409443342,-3000.0,0.00022712,2]
[381921698,1756409443351,-5000.0,0.00022733,2]
[381921699,1756409443361,-480.0,0.00022737,2]
[381921700,1756409443370,-494.4,0.00022737,2]
[381921701,1756409443379,-488.72,0.00022737,2]
[381921702,1756409443389,-2520.38,0.00022738,2]
[381921703,1756409443398,-480.0,0.00022738,2]
[381921704,1756409443407,-5512.36,0.00022738,2]
[381921705,1756409443417,-380.81890397,0.00022738,2]
[381921706,1756409443427,-2445.38,0.00022738,2]
[381921707,1756409443437,-480.0,0.00022738,2]
[381921708,1756409443447,-480.0,0.00022738,2]
[381921709,1756409443456,-715.62,0.00022738,2]
[381921710,1756409443466,-5942.04,0.00022738,2]
[381921711,1756409443475,-552.89,0.00022738,2]
[381921712,1756409443487,-482.39,0.00022738,2]
[381921713,1756409443496,-480.0,0.00022739,2]
[381921714,1756409443506,-3344.71,0.00022739,2]
[381921715,1756409443515,-655.83,0.00022739,2]
[381921716,1756409443524,-3490.11,0.00022739,2]
[381921717,1756409443534,-587.0,0.00022776,2]
[381921718,1756409443544,-687.1827399,0.00022848,2]
[381921719,1756409443553,-150.0,0.00022973,2]
[381921720,1756409443565,-195.9990109,0.00022973,2]
[381921721,1756409443574,-500.0,0.00022973,2]
[381921722,1756409443584,-500.0,0.00022973,2]
[381921723,1756409443594,-500.0,0.00022973,2]
[381921724,1756409443605,-500.0,0.00022973,2]
[381921725,1756409443615,-500.0,0.00022973,2]
[381921726,1756409443625,-160.0,0.00023,2]
[381921727,1756409443634,-10961.17405955,0.0002301,5]
[381921728,1756409443644,-480.0,0.00023011,2]
[381921729,1756409443653,-494.4,0.00023011,2]
[381921730,1756409443662,-488.72,0.00023011,2]
[381921731,1756409443671,-2520.38,0.00023012,2]
[381921732,1756409443680,-484.99239717,0.00023012,2]
[381921733,1756409443689,-5512.36,0.00023012,2]
[381921734,1756409443698,-2445.38,0.00023012,2]
[381921735,1756409443708,-480.0,0.00023012,2]
[381921736,1756409443717,-480.0,0.00023012,2]
[381921737,1756409443726,-245.94607226,0.00023012,2]
[381921738,1756409443768,-469.67392774,0.00023012,2]
[381921739,1756409443778,-5942.04,0.00023012,2]
[381921740,1756409443788,-552.89,0.00023012,2]
[381921741,1756409443797,-482.39,0.00023012,2]
[381921742,1756409443808,-480.0,0.00023013,2]
[381921743,1756409443819,-3344.71,0.00023013,2]
[381921744,1756409443829,-655.83,0.00023013,2]
[381921745,1756409443839,-3490.11,0.00023013,2]
[381921746,1756409443849,-1000.0,0.00023018,2]
[381921747,1756409443860,-587.38320038,0.00023018,2]
[381921748,1756409443871,-3500.0,0.0002306,2]
[381921749,1756409443882,-500.0,0.00023068,2]
[381921750,1756409443893,-150.0,0.00023073,2]
[381921751,1756409443903,-662.82809818,0.00023074,2]
[381921752,1756409443914,-10959.84,0.000231,2]
[381921753,1756409443923,-1000.0,0.00023142,2]
[381921754,1756409443932,-360.0,0.00023165,2]
[381921755,1756409443942,-3500.0,0.0002326,2]
[381921756,1756409443951,-394.85332451,0.00023285,2]
[381921757,1756409443962,-494.4,0.00023285,2]
[381921758,1756409443972,-488.72,0.00023285,2]
[381921759,1756409443984,-2520.38,0.00023286,2]
[381921760,1756409443994,-5512.36,0.00023286,2]
[381921761,1756409444003,-2445.38,0.00023286,2]
[381921762,1756409444013,-480.0,0.00023286,2]
[381921763,1756409444023,-480.0,0.00023286,2]
[381921764,1756409444033,-715.62,0.00023286,2]
[381921765,1756409444042,-5942.04,0.00023286,2]
[381921766,1756409444053,-552.89,0.00023286,2]
[381921767,1756409444062,-482.39,0.00023286,2]
[381921768,1756409444073,-480.0,0.00023287,2]
[381921769,1756409444083,-3344.71,0.00023287,2]
[381921770,1756409444093,-655.83,0.00023287,2]
[381921771,1756409444102,-3490.11,0.00023287,2]
[381921772,1756409444111,-211.966536,0.00023288,2]
[381921773,1756409444120,-3780.25702106,0.00023353,2]
[381921774,1756409444130,-250.0,0.00023521,2]
[381921775,1756409444138,-500.0,0.00023521,2]
[381921776,1756409444148,-500.0,0.00023521,2]
[381921777,1756409444156,-500.0,0.00023521,2]
[381921778,1756409444166,-500.0,0.00023521,2]
[381921779,1756409444175,-500.0,0.00023521,2]
[381921780,1756409444185,-494.4,0.00023559,2]
[381921781,1756409444194,-488.72,0.00023559,2]
[381921782,1756409444204,-2520.38,0.0002356,2]
[381921783,1756409444213,-5512.36,0.0002356,2]
[381921784,1756409444223,-2445.38,0.0002356,2]
[381921785,1756409444232,-607.87608318,0.0002356,2]
[381921786,1756409444242,-480.0,0.0002356,2]
[381921787,1756409444251,-715.62,0.0002356,2]
[381921788,1756409444260,-5942.04,0.0002356,2]
[381921789,1756409444270,-552.89,0.0002356,2]
[381921790,1756409444279,-482.39,0.0002356,2]
[381921791,1756409444288,-192.35835126,0.00023561,2]
[381921792,1756409444298,-3344.71,0.00023561,2]
[381921793,1756409444307,-655.83,0.00023561,2]
[381921794,1756409444316,-3490.11,0.00023561,2]
[381921795,1756409444325,-200.0,0.00023561,2]
[381921796,1756409444334,-200.0,0.00023561,2]
[381921797,1756409444344,-200.0,0.00023561,2]
[381921798,1756409444353,-200.0,0.00023561,2]
[381921799,1756409444363,-200.0,0.00023561,2]
[381921800,1756409444372,-200.0,0.00023561,2]
[381921801,1756409444381,-187.44828553,0.00023561,2]
[381921802,1756409444390,-4000.0,0.00023608,2]
[381921803,1756409444400,-300.0,0.00023621,2]
[381921804,1756409444410,-250.0,0.00023695,2]
[381921805,1756409444419,-460.0,0.00023713,2]
[381921806,1756409444429,-687.1827399,0.00023774,2]
[381921807,1756409444439,-4000.0,0.00023808,2]
[381921808,1756409444448,-494.4,0.00023833,2]
[381921809,1756409444457,-488.72,0.00023833,2]
[381921810,1756409444467,-2520.38,0.00023834,2]
[381921811,1756409444477,-5512.36,0.00023834,2]
[381921812,1756409444491,-2445.38,0.00023834,2]
[381921813,1756409444500,-480.0,0.00023834,2]
[381921814,1756409444510,-715.62,0.00023834,2]
[381921815,1756409444519,-5942.04,0.00023834,2]
[381921816,1756409444529,-552.89,0.00023834,2]
[381921817,1756409444539,-3344.71,0.00023835,2]
[381921818,1756409444548,-655.83,0.00023835,2]
[381921819,1756409444560,-3490.11,0.00023835,2]
[381921820,1756409444570,-216.18903889,0.00024,7]
[381921821,1756409444579,-3026.33156144,0.00024,30]
[381921822,1756409444589,-350.0,0.00024068,2]
[381921823,1756409444598,-494.4,0.00024107,2]
[381921824,1756409444608,-488.72,0.00024107,2]
[381921825,1756409444619,-2520.38,0.00024108,2]
[381921826,1756409444629,-5512.36,0.00024108,2]
[381921827,1756409444638,-2445.38,0.00024108,2]
[381921828,1756409444648,-480.0,0.00024108,2]
[381921829,1756409444658,-715.62,0.00024108,2]
[381921830,1756409444668,-5942.04,0.00024108,2]
[381921831,1756409444679,-552.89,0.00024108,2]
[381921832,1756409444690,-3344.71,0.00024109,2]
[381921833,1756409444699,-655.83,0.00024109,2]
[381921834,1756409444710,-3490.11,0.00024109,2]
[381921835,1756409444719,-736.0,0.00024154,2]
[381921836,1756409444728,-554.73448653,0.00024156,2]
[381921837,1756409444738,-450.0,0.00024168,2]
[381921838,1756409444747,-560.0,0.00024261,2]
[381921839,1756409444757,-736.0,0.00024299,2]
[381921840,1756409444768,-736.0,0.00024324,2]
[381921841,1756409444777,-3431.37352379,0.00024356,2]
[381921842,1756409444926,-590.28,0.00019449,2]
[381921843,1756409444940,-480.0,0.00019451,2]
[381921844,1756409444950,-480.0,0.00019451,2]
[381921845,1756409444960,-480.0,0.00019725,2]
[381921846,1756409444970,-480.0,0.00019725,2]
[381921847,1756409444979,-480.0,0.00019999,2]
[381921848,1756409444988,-454.38,0.00019999,2]
[381921849,1756409444998,-480.0,0.00020273,2]
[381921850,1756409445007,-4.64516732,0.00020547,2]
[381921865,1756409445939,-324.65567513,0.00019177,2]
[381921866,1756409445951,-175.34432487,0.00019177,2]
[381921867,1756409445960,-147.0,0.00019177,2]
[381921868,1756409446097,-353.0,0.00019177,2]
[381921869,1756409446107,-500.0,0.00019177,2]
[381921870,1756409446116,-500.0,0.00019177,2]
[381921871,1756409446125,-500.0,0.00019177,2]
[381921872,1756409446134,-500.0,0.00019177,2]
[381921873,1756409446143,-500.0,0.00019177,2]
[381921874,1756409446152,-500.0,0.00019177,2]
[381921875,1756409446161,-500.0,0.00019177,2]
[381921876,1756409446171,-500.0,0.00019177,2]
[381921877,1756409446180,-500.0,0.00019177,2]
[381921878,1756409446190,-500.0,0.00019177,2]
[381921879,1756409446199,-500.0,0.00019177,2]
[381921880,1756409446208,-229.56055544,0.00019177,2]
[381921881,1756409446218,-500.0,0.00019177,2]
[381921882,1756409446227,-475.35483268,0.00020547,2]
[381921883,1756409446237,-480.0,0.00020821,2]
[381921884,1756409446247,-480.0,0.00021095,2]
[381921885,1756409446259,-480.0,0.00021369,2]
[381921886,1756409446269,-480.0,0.00021643,2]
[381921887,1756409446279,-480.0,0.00021917,2]
[381921888,1756409446289,-480.0,0.00022191,2]
[381921889,1756409446298,-480.0,0.00022465,2]
[381921890,1756409446307,-480.0,0.00022739,2]
[381921891,1756409446316,-480.0,0.00023013,2]
[381921892,1756409446349,-601.68,0.00023287,2]
[381921893,1756409446359,-482.39,0.00023834,2]
[381921894,1756409446367,-482.39,0.00024108,2]
[381921895,1756409446377,-1068.62647621,0.00024356,2]
[381921896,1756409446387,-494.4,0.00024381,2]
[381921897,1756409446398,-488.72,0.00024381,2]
[381921898,1756409446408,-2445.38,0.00024382,2]
[381921899,1756409446418,-480.0,0.00024382,2]
[381921900,1756409446427,-715.62,0.00024382,2]
[381921901,1756409446437,-5942.04,0.00024382,2]
[381921902,1756409446446,-552.89,0.00024382,2]
[381921903,1756409446456,-482.39,0.00024382,2]
[381921904,1756409446464,-238.04329608,0.00024383,2]
[381921905,1756409446474,-623.38203707,0.00024383,2]
[381921906,1756409446485,-2493.52814828,0.00024383,2]
[381921907,1756409446495,-5604.8278953,0.00024383,2]
[381921908,1756409446505,-538.74636752,0.00024383,2]
[381921909,1756409446514,-2152.83048459,0.00024383,2]
[381921910,1756409446524,-3344.71,0.00024383,2]
[381921911,1756409446534,-655.83,0.00024383,2]
[381921912,1756409446543,-3490.11,0.00024383,2]
[381921913,1756409446552,-661.35320124,0.000245,2]
[381921914,1756409446563,-1177.0,0.000245,30]
[381921915,1756409446573,-868.6467829,0.000246,2]
[381921916,1756409446582,-450.0,0.00024616,2]
[381921917,1756409446592,-500.0,0.0002464,9]
[381921918,1756409446602,-52137.37755662,0.0002465,2]
[381921919,1756409579973,1425.8355843,0.0003029,60]
[381921921,1756409967811,-300.0,0.00019837,20]
[381921922,1756409967836,-300.0,0.00019837,20]
[381921923,1756409967861,-300.0,0.00019837,20]
[381921924,1756409967885,-300.0,0.00019837,20]
[381921925,1756409967909,-300.0,0.00019837,20]
[381921926,1756409967935,-300.0,0.00019837,20]
[381921927,1756409967961,-300.0,0.00019837,20]
[381921928,1756409967985,-300.0,0.00019837,20]
[381921929,1756409968012,-300.0,0.00019837,20]
[381921930,1756409968037,-300.0,0.00019837,20]
[381921931,1756409968061,-300.0,0.00019837,20]
[381921932,1756409968087,-300.0,0.00019837,20]
[381921933,1756409968112,-300.0,0.00019837,20]
[381921934,1756409968137,-300.0,0.00019837,20]
[381921935,1756409968162,-300.0,0.00019837,20]
[381921936,1756409968186,-600.0,0.00019838,20]
[381921937,1756409968239,-720.0,0.00021822,20]
[381921939,1756410018392,163.520633,0.00013699,2]
[381921940,1756410019804,600.0,0.00019836,20]
[381921941,1756410020279,720.0,0.0002182,20]
[381921942,1756410055479,600.0,0.00019359,20]
[381921943,1756410055940,720.0,0.00021294,20]
[381921944,1756410079573,151.94,0.000167,2]
[381921945,1756410092415,340.0,0.00019359,20]
[381921946,1756410440502,50674.0,0.0003026,120]
[381921947,1756410505132,5000.0,0.000173,6]
[381921948,1756410529063,5000.0,0.000173,6]
[381921949,1756410589258,-191.348148,0.00017093,2]
[381921950,1756410591791,-231.53083892,0.00017093,2]
[381921951,1756410593549,-437.14441397,0.00017093,2]
[381921952,1756410596375,-210.88347082,0.00017093,2]
[381921953,1756410598114,-162.49542098,0.00016922,2]
[381921954,1756410601129,-177.01210145,0.00016922,2]
[381921955,1756410604403,-154.85053624,0.00016922,2]
[381921956,1756410604426,-62.08591803,0.00017093,2]
[381921957,1756410606079,-240.45324846,0.00017093,2]
[381921958,1756410609326,-174.02912009,0.00017093,2]
[381921960,1756410612387,-309.42919034,0.00017093,2]
[381921961,1756410617704,-240.37800455,0.00017093,2]
[381921962,1756410619870,-395.72246316,0.00016922,2]
[381921963,1756410621797,-264.00677888,0.00016922,2]
[381921964,1756410624455,-240.53584913,0.00016922,2]
[381921965,1756410626293,-285.82026568,0.00016922,2]
[381921966,1756410628925,-159.80922609,0.00016922,2]
[381921985,1756410632142,-582.48883744,0.00016922,2]
[381921987,1756410632152,-953.75963642,0.00017093,2]
[381921989,1756410632162,-300.0,0.00017266,2]
[381921991,1756410632171,-832.0,0.00017266,2]
[381921993,1756410632181,-300.0,0.00017266,2]
[381921996,1756410632191,-1200.0,0.00017267,2]
[381921999,1756410632200,-500.0,0.00017267,2]
[381922002,1756410632209,-414.62400697,0.00017267,2]
[381922005,1756410632219,-500.0,0.00017267,2]
[381922008,1756410632228,-500.0,0.00017267,2]
[381922010,1756410632237,-500.0,0.00017267,2]
[381922014,1756410632246,-500.0,0.00017267,2]
[381922017,1756410632256,-572.95605554,0.00017267,2]
[381922020,1756410632266,-50000.0,0.00017267,2]
[381922023,1756410632275,-500.0,0.000177,2]
[381922026,1756410632285,-717.0231899,0.0001798,2]
[381922029,1756410632293,-1000.0,0.00018248,2]
[381922031,1756410632303,-435.087666,0.00018449,2]
[381922033,1756410632313,-1500.0,0.00018796,2]
[381922035,1756410632321,-1200.0,0.00018854,2]
[381922037,1756410632331,-480.0,0.00019178,2]
[381922039,1756410632340,-562.65,0.00019178,2]
[381922041,1756410632348,-480.0,0.00019178,2]
[381922043,1756410632357,-480.0,0.00019178,2]
[381922045,1756410632367,-480.0,0.00019178,2]
[381922047,1756410632376,-480.0,0.00019178,2]
[381922049,1756410632385,-480.0,0.00019178,2]
[381922051,1756410632394,-480.0,0.00019178,2]
[381922053,1756410632403,-480.0,0.00019178,2]
[381922055,1756410632413,-480.0,0.00019178,2]
[381922057,1756410632422,-595.191698,0.00019178,2]
[381922060,1756410632432,-175.91390125,0.00019178,2]
[381922061,1756410632441,-480.0,0.00019178,2]
[381922063,1756410632451,-480.0,0.00019178,2]
[381922065,1756410632460,-480.0,0.00019178,2]
[381922067,1756410632469,-480.0,0.00019178,2]
[381922069,1756410632478,-480.0,0.00019178,2]
[381922071,1756410632487,-480.0,0.00019178,2]
[381922073,1756410632496,-480.0,0.00019178,2]
[381922075,1756410632506,-480.0,0.00019178,2]
[381922077,1756410632517,-480.0,0.00019178,2]
[381922079,1756410632526,-480.0,0.00019178,2]
[381922081,1756410632535,-480.0,0.00019178,2]
[381922083,1756410632544,-480.0,0.00019178,2]
[381922085,1756410632553,-480.0,0.00019178,2]
[381922087,1756410632563,-480.0,0.00019178,2]
[381922089,1756410632572,-480.0,0.00019178,2]
[381922091,1756410632581,-480.0,0.00019178,2]
[381922093,1756410632590,-480.0,0.00019178,2]
[381922095,1756410632599,-480.0,0.00019178,2]
[381922097,1756410632608,-480.0,0.00019178,2]
[381922099,1756410632618,-480.0,0.00019178,2]
[381922101,1756410632627,-480.0,0.00019178,2]
[381922103,1756410632637,-480.0,0.00019178,2]
[381922105,1756410632646,-480.0,0.00019178,2]
[381922107,1756410632656,-480.0,0.00019178,2]
[381922109,1756410632665,-480.0,0.00019178,2]
[381922111,1756410632674,-562.47,0.00019178,2]
[381922113,1756410632683,-574.87,0.00019178,2]
[381922115,1756410632693,-480.0,0.00019178,2]
[381922117,1756410632703,-572.53,0.00019178,2]
[381922120,1756410632713,-480.0,0.00019178,2]
[381922122,1756410632722,-480.0,0.00019178,2]
[381922123,1756410632731,-480.0,0.00019178,2]
[381922125,1756410632740,-480.0,0.00019178,2]
[381922127,1756410632749,-480.0,0.00019178,2]
[381922129,1756410632758,-480.0,0.00019178,2]
[381922131,1756410632768,-559.62206495,0.00019178,2]
[381922134,1756410632778,-583.23,0.00019178,2]
[381922135,1756410632787,-480.0,0.00019178,2]
[381922138,1756410632797,-480.0,0.00019178,2]
[381922140,1756410632806,-480.0,0.00019178,2]
[381922142,1756410632815,-480.0,0.00019178,2]
[381922144,1756410632824,-2756.18,0.00019178,2]
[381922145,1756410632833,-361.64502393,0.00019178,2]
[381922147,1756410632844,-480.0,0.00019178,2]
[381922150,1756410632855,-572.23,0.00019178,2]
[381922151,1756410632864,-480.0,0.00019178,2]
[381922154,1756410632874,-480.0,0.00019178,2]
[381922156,1756410632883,-480.0,0.00019178,2]
[381922157,1756410632894,-480.0,0.00019178,2]
[381922159,1756410632904,-480.0,0.00019178,2]
[381922162,1756410632914,-480.0,0.00019178,2]
[381922164,1756410632924,-480.0,0.00019178,2]
[381922166,1756410632934,-480.0,0.00019178,2]
[381922168,1756410632943,-480.0,0.00019178,2]
[381922170,1756410632952,-620.62826028,0.00019178,2]
[381922172,1756410632962,-611.68,0.00019178,2]
[381922174,1756410632971,-480.0,0.00019178,2]
[381922176,1756410632980,-480.0,0.00019178,2]
[381922178,1756410632989,-480.0,0.00019178,2]
[381922180,1756410632998,-1672.36,0.00019178,2]
[381922182,1756410633008,-480.0,0.00019178,2]
[381922184,1756410633017,-480.0,0.00019178,2]
[381922185,1756410633026,-480.0,0.00019178,2]
[381922187,1756410633036,-480.0,0.00019178,2]
[381922189,1756410633047,-480.0,0.00019178,2]
[381922191,1756410633056,-480.0,0.00019178,2]
[381922193,1756410633066,-480.0,0.00019178,2]
[381922195,1756410633076,-480.0,0.00019178,2]
[381922197,1756410633086,-480.0,0.00019178,2]
[381922199,1756410633095,-480.0,0.00019178,2]
[381922201,1756410633105,-480.0,0.00019178,2]
[381922203,1756410633115,-569.68838481,0.00019178,2]
[381922206,1756410633124,-480.0,0.00019178,2]
[381922208,1756410633135,-480.0,0.00019178,2]
[381922209,1756410633144,-480.0,0.00019178,2]
[381922211,1756410633154,-480.0,0.00019178,2]
[381922213,1756410633164,-1222.69,0.00019178,2]
[381922215,1756410633174,-500.0,0.00019178,2]
[381922217,1756410633183,-172.37182722,0.00019178,2]
[381922219,1756410633193,-480.0,0.00019178,2]
[381922221,1756410633202,-1745.05,0.00019178,2]
[381922223,1756410633212,-480.0,0.00019178,2]
[381922225,1756410633222,-480.0,0.00019178,2]
[381922227,1756410633231,-576.98306428,0.00019178,2]
[381922229,1756410633241,-480.0,0.00019178,2]
[381922231,1756410633251,-600.12,0.00019178,2]
[381922233,1756410633260,-480.0,0.00019178,2]
[381922235,1756410633272,-480.0,0.00019178,2]
[381922238,1756410633282,-480.0,0.00019178,2]
[381922240,1756410633292,-480.0,0.00019178,2]
[381922241,1756410633301,-480.0,0.00019178,2]
[381922243,1756410633309,-480.0,0.00019178,2]
[381922245,1756410633319,-480.0,0.00019178,2]
[381922247,1756410633329,-480.0,0.00019178,2]
[381922249,1756410633339,-480.0,0.00019178,2]
[381922251,1756410633349,-480.0,0.00019178,2]
[381922253,1756410633359,-574.93673578,0.00019178,2]
[381922256,1756410633369,-480.0,0.00019178,2]
[381922258,1756410633379,-480.0,0.00019178,2]
[381922260,1756410633390,-480.0,0.00019178,2]
[381922262,1756410633400,-480.0,0.00019178,2]
[381922264,1756410633409,-622.48,0.00019178,2]
[381922266,1756410633419,-480.0,0.00019178,2]
[381922268,1756410633428,-480.0,0.00019178,2]
[381922270,1756410633438,-480.0,0.00019178,2]
[381922272,1756410633447,-480.0,0.00019178,2]
[381922273,1756410633456,-480.0,0.00019178,2]
[381922275,1756410633466,-480.0,0.00019178,2]
[381922277,1756410633476,-629.5,0.00019178,2]
[381922279,1756410633485,-480.0,0.00019178,2]
[381922282,1756410633495,-584.0,0.00019178,2]
[381922284,1756410633505,-480.0,0.00019178,2]
[381922286,1756410633516,-480.0,0.00019178,2]
[381922287,1756410633526,-480.0,0.00019178,2]
[381922288,1756410633535,-3218.61,0.00019178,2]
[381922289,1756410633545,-480.0,0.00019178,2]
[381922290,1756410633554,-480.0,0.00019178,2]
[381922291,1756410633563,-480.0,0.00019178,2]
[381922292,1756410633572,-480.0,0.00019178,2]
[381922293,1756410633581,-1470.22,0.00019178,2]
[381922294,1756410633591,-588.32739687,0.00019178,2]
[381922295,1756410633600,-480.0,0.00019178,2]
[381922296,1756410633609,-480.0,0.00019178,2]
[381922297,1756410633619,-480.0,0.00019178,2]
[381922298,1756410633628,-2182.48,0.00019178,2]
[381922299,1756410633637,-480.0,0.00019178,2]
[381922300,1756410633647,-589.43,0.00019178,2]
[381922301,1756410633656,-480.0,0.00019178,2]
[381922302,1756410633666,-500.0,0.00019178,2]
[381922303,1756410633675,-2000.0,0.00019344,2]
[381922304,1756410633685,-813.15642053,0.00019352,2]
[381922305,1756410633694,-260.0,0.00019359,20]
[381922306,1756410633703,-480.0,0.00019449,2]
[381922307,1756410633713,-480.0,0.00019449,2]
[381922308,1756410633724,-480.0,0.00019449,2]
[381922310,1756410633734,-598.31,0.00019449,2]
[381922312,1756410633744,-480.0,0.00019449,2]
[381922314,1756410633755,-480.0,0.00019449,2]
[381922316,1756410633767,-480.0,0.00019449,2]
[381922318,1756410633778,-480.0,0.00019449,2]
[381922320,1756410633789,-480.0,0.00019449,2]
[381922322,1756410633799,-480.0,0.00019449,2]
[381922324,1756410633810,-579.77,0.00019449,2]
[381922326,1756410633820,-480.0,0.00019449,2]
[381922328,1756410633830,-480.0,0.00019449,2]
[381922330,1756410633840,-480.0,0.00019449,2]
[381922332,1756410633852,-480.0,0.00019449,2]
[381922334,1756410633863,-480.0,0.00019449,2]
[381922336,1756410633873,-480.0,0.00019449,2]
[381922338,1756410633883,-480.0,0.00019449,2]
[381922340,1756410633895,-480.0,0.00019449,2]
[381922342,1756410633904,-480.0,0.00019449,2]
[381922344,1756410633914,-558.48,0.00019449,2]
[381922346,1756410633925,-480.0,0.00019449,2]
[381922348,1756410633936,-480.0,0.00019449,2]
[381922350,1756410633946,-480.0,0.00019449,2]
[381922352,1756410633956,-480.0,0.00019449,2]
[381922354,1756410633967,-558.82127523,0.00019449,2]
[381922356,1756410633977,-573.16713279,0.00019449,2]
[381922788,1756410638196,-230.32845062,0.00017265,2]
[381922790,1756410638208,-193.77820897,0.00017266,2]
[381922792,1756410638217,-686.43144177,0.00018866,2]
[381922794,1756410638228,-480.0,0.00019178,2]
[381922796,1756410638237,-480.0,0.00019178,2]
[381922798,1756410638247,-480.0,0.00019178,2]
[381922800,1756410638256,-480.0,0.00019178,2]